bitfinex/quotes_SOLUSD_20250514
["timestamp","ask_amount","ask_price","bid_price","bid_amount"]
[1747223021993,11.98828376,181.59,181.52,26.0]
[1747223022393,5.50721445,181.58,181.52,26.0]
[1747223023809,17.49519493,181.59,181.52,26.0]
[1747223024911,5.50691117,181.59,181.52,26.0]
[1747223025284,5.50667498,181.6,181.52,31.50892478]
[1747223025899,5.50600154,181.62,181.52,31.50892478]
[1747223026794,5.50600154,181.62,181.58,12.00708333]
[1747223027705,5.50600154,181.62,181.56,26.0]
[1747223027881,12.00708333,181.61,181.54,26.0]
[1747223028087,19.27100539,181.62,181.57,12.00708333]
[1747223028288,12.00708333,181.61,181.56,12.00708333]
[1747223029406,19.27312774,181.6,181.55,12.00708333]
[1747223029585,12.00708333,181.59,181.55,12.00708333]
[1747223030804,5.50721445,181.58,181.55,12.00708333]
[1747223031596,5.50721445,181.58,181.54,12.00708333]
[1747223032509,19.27525057,181.58,181.51,2.87046345]
[1747223032810,6.2398,181.57,181.49,12.00708333]
[1747223033113,12.00708333,181.54,181.49,12.00708333]
[1747223033296,12.00708333,181.54,181.47,2.87100723]
[1747223033499,12.00708333,181.54,181.49,12.00708333]
[1747223033814,5.50873133,181.53,181.49,12.00708333]
[1747223034109,17.51581466,181.53,181.49,12.00708333]
[1747223034888,17.51581466,181.53,181.47,2.87100723]
[1747223034889,5.50873133,181.53,181.5,12.00708333]
[1747223035213,5.50873133,181.53,181.52,12.00708333]
[1747223035896,5.50812448,181.55,181.51,12.00708333]
[1747223036617,5.50812448,181.55,181.54,12.00708333]
[1747223037601,13.76836993,181.58,181.54,12.00708333]
[1747223038411,25.77545326,181.58,181.54,12.00708333]
[1747223038627,12.00708333,181.57,181.48,21.02]
[1747223039123,12.00708333,181.57,181.53,12.00708333]
[1747223039899,12.00708333,181.57,181.48,21.02]
[1747223039900,19.27737386,181.56,181.48,21.02]
[1747223040422,31.28445719,181.56,181.51,12.00708333]
[1747223040928,12.00708333,181.55,181.48,21.02]
[1747223041117,12.00708333,181.55,181.5,12.00708333]
[1747223041502,12.00708333,181.54,181.5,12.00708333]
[1747223042241,17.51581466,181.53,181.45,4.38496099]
[1747223042442,12.00708333,181.52,181.47,12.00708333]
[1747223042725,19.28055967,181.53,181.49,12.00708333]
[1747223043707,31.287643,181.53,181.44,12.00708333]
[1747223043914,19.28055967,181.53,181.49,12.00708333]
[1747223045113,5.50873133,181.53,181.52,12.00708333]
[1747223045300,31.287643,181.53,181.43,2.87141825]
[1747223045503,12.00708333,181.52,181.47,12.00708333]
[1747223046024,31.287643,181.53,181.48,12.00708333]
[1747223046418,19.28055967,181.53,181.49,12.00708333]
[1747223046626,5.50873133,181.53,181.49,12.00708333]
[1747223046924,5.50873133,181.53,181.5,12.00708333]
[1747223049820,5.50873133,181.53,181.45,5.51108037]
[1747223050024,17.51581466,181.53,181.48,12.00708333]
[1747223050222,17.51581466,181.53,181.49,12.00708333]
[1747223050223,5.50873133,181.53,181.49,12.00708333]
[1747223050429,5.50873133,181.53,181.5,12.00708333]
[1747223050629,5.50836949,181.55,181.52,12.00708333]
[1747223050926,5.50836949,181.55,181.54,12.00708333]
[1747223051637,5.50751776,181.57,181.54,12.00708333]
[1747223051816,5.50751776,181.57,181.56,12.00708333]
[1747223052613,5.50751776,181.57,181.55,12.00708333]
[1747223053001,5.50691117,181.59,181.55,12.00708333]
[1747223053733,31.28127243,181.59,181.54,12.00708333]
[1747223053919,12.00708333,181.58,181.53,12.00708333]
[1747223054431,12.00708333,181.58,181.48,54.10914602]
[1747223054623,12.00708333,181.58,181.53,12.00708333]
[1747223054826,12.00708333,181.58,181.48,54.10914602]
[1747223055023,19.27631216,181.57,181.53,12.00708333]
[1747223055327,31.28339549,181.57,181.53,12.00708333]
[1747223056130,31.28339549,181.57,181.48,48.599]
[1747223056437,31.28339549,181.57,181.53,12.00708333]
[1747223057336,19.27631216,181.57,181.53,12.00708333]
[1747223057521,19.27631216,181.57,181.49,26.0]
[1747223057928,5.50751776,181.57,181.49,26.0]
[1747223058126,5.50751776,181.57,181.56,12.00708333]
[1747223059231,5.50691117,181.59,181.56,12.00708333]
[1747223059422,5.50691117,181.59,181.57,12.00708333]
[1747223059934,21.02,181.6,181.57,12.00708333]
[1747223060231,26.52660792,181.6,181.59,12.00708333]
[1747223060404,119.69028448,181.63,181.59,12.00708333]
[1747223060405,5.50600154,181.62,181.59,12.00708333]
[1747223060608,5.50600154,181.62,181.6,12.00708333]
[1747223060869,5.50600154,181.62,181.59,12.00708333]
[1747223061028,5.50600154,181.62,181.53,43.5157234]
[1747223061337,5.50600154,181.62,181.59,12.00708333]
[1747223062528,5.50600154,181.62,181.6,12.00708333]
[1747223062730,111.43163214,181.63,181.61,12.00708333]
[1747223062939,111.43163214,181.63,181.6,12.00708333]
[1747223063624,111.43163214,181.63,181.61,12.00708333]
[1747223063809,111.43163214,181.63,181.6,12.00708333]
[1747223064010,111.43163214,181.63,181.61,12.00708333]
[1747223065017,105.92587613,181.63,181.62,12.00708333]
[1747223066336,111.43157452,181.63,181.55,22.5675]
[1747223066510,111.43157452,181.63,181.59,12.00708333]
[1747223066909,123.43865785,181.63,181.58,12.00708333]
[1747223067138,125.19582051,181.63,181.59,12.00708333]
[1747223067334,125.19582051,181.63,181.57,26.0]
[1747223067516,125.19582051,181.63,181.59,12.00708333]
[1747223068640,125.19582051,181.63,181.57,26.0]
[1747223068825,125.19582051,181.63,181.59,12.00708333]
[1747223069535,125.19582051,181.63,181.5,53.70771378]
[1747223069536,12.00708333,181.62,181.51,1.5675]
[1747223069713,12.00708333,181.58,181.54,12.00708333]
[1747223070126,12.00708333,181.59,181.54,12.00708333]
[1747223070920,5.50721445,181.58,181.54,12.00708333]
[1747223071237,17.51429778,181.58,181.54,12.00708333]
[1747223071739,31.2823339,181.58,181.53,12.00708333]
[1747223071915,19.27525057,181.58,181.54,12.00708333]
[1747223072116,19.27525057,181.58,181.55,12.00708333]
[1747223072317,5.50721445,181.58,181.55,12.00708333]
[1747223072948,5.50691117,181.59,181.55,12.00708333]
[1747223073947,5.50691117,181.59,181.57,12.00708333]
[1747223074132,5.50691117,181.59,181.58,12.00708333]
[1747223074453,5.50691117,181.59,181.57,12.00708333]
[1747223074947,5.50630471,181.61,181.57,12.00708333]
[1747223075129,5.50630471,181.61,181.53,26.0]
[1747223075326,12.00708333,181.6,181.53,26.0]
[1747223075539,31.27914983,181.61,181.56,12.00708333]
[1747223075870,31.27914983,181.61,181.55,12.00708333]
[1747223075871,12.00708333,181.6,181.55,12.00708333]
[1747223076016,12.00708333,181.59,181.54,12.00708333]
[1747223076741,12.00708333,181.58,181.5,26.0]
[1747223076926,12.00708333,181.58,181.54,12.00708333]
[1747223077131,5.50751776,181.57,181.54,12.00708333]
[1747223078248,5.50751776,181.57,181.55,12.00708333]
[1747223078436,5.50751776,181.57,181.51,5.50923045]
[1747223078437,5.50717394,181.59,181.56,12.00708333]
[1747223078646,5.50717394,181.59,181.57,12.00708333]
[1747223079657,5.50600154,181.62,181.58,12.00708333]
[1747223079869,5.50600154,181.62,181.6,12.00708333]
[1747223080067,126.92587613,181.63,181.61,12.00708333]
[1747223080361,105.92587613,181.63,181.56,46.98]
[1747223080566,111.43157452,181.63,181.61,12.00708333]
[1747223080760,105.92587613,181.63,181.61,12.00708333]
[1747223080955,105.92587613,181.63,181.62,12.00708333]
[1747223082554,111.43157452,181.63,181.6,12.00708333]
[1747223082759,111.43157452,181.63,181.59,12.00708333]
[1747223082946,123.43865785,181.63,181.58,12.00708333]
[1747223083389,12.00708333,181.62,181.58,12.00708333]
[1747223083871,5.50630471,181.61,181.58,12.00708333]
[1747223085972,5.50600154,181.62,181.58,12.00708333]
[1747223086560,5.50600154,181.62,181.59,12.00708333]
[1747223086753,5.50600154,181.62,181.58,12.00708333]
[1747223087442,17.51308487,181.62,181.57,12.00708333]
[1747223087746,12.00708333,181.6,181.55,12.00708333]
[1747223088166,5.50691117,181.59,181.55,12.00708333]
[1747223089075,5.50691117,181.59,181.56,12.00708333]
[1747223089679,5.50691117,181.59,181.53,5.50865119]
[1747223089680,5.50691117,181.59,181.55,12.00708333]
[1747223089850,5.50691117,181.59,181.56,12.00708333]
[1747223090057,5.5066912,181.6,181.57,12.00708333]
[1747223090582,17.51338804,181.61,181.56,12.00708333]
[1747223091685,5.50691117,181.59,181.51,52.48924847]
[1747223091888,5.50630471,181.61,181.53,12.00708333]
[1747223092057,5.50630471,181.61,181.57,12.00708333]
[1747223093587,5.50630471,181.61,181.58,1.2]
[1747223094368,17.51338804,181.61,181.58,1.2]
[1747223094768,12.00708333,181.6,181.58,1.2]
[1747223095096,12.00708333,181.59,181.54,12.00708333]
[1747223095260,12.00708333,181.59,181.55,12.00708333]
[1747223095765,12.00708333,181.6,181.55,12.00708333]
[1747223096186,5.50691117,181.59,181.55,12.00708333]
[1747223096488,17.5139945,181.59,181.55,12.00708333]
[1747223097994,5.50691117,181.59,181.55,12.00708333]
[1747223098421,5.50691117,181.59,181.56,12.00708333]
[1747223098589,5.50691117,181.59,181.56,13.20708333]
[1747223098886,5.50691117,181.59,181.56,12.00708333]
[1747223100563,5.50691117,181.59,181.55,12.00708333]
[1747223100762,17.5139945,181.59,181.54,12.00708333]
[1747223101987,5.50630471,181.61,181.56,12.00708333]
[1747223102292,17.51338804,181.61,181.56,12.00708333]
[1747223102677,17.51338804,181.61,181.52,5.50893573]
[1747223102678,5.50630471,181.61,181.52,5.50893573]
[1747223102863,12.00708333,181.6,181.55,12.00708333]
[1747223103183,5.50630471,181.61,181.52,5.50893573]
[1747223103184,17.51338804,181.61,181.56,12.00708333]
[1747223103400,12.00708333,181.59,181.51,31.50925395]
[1747223103692,12.00708333,181.6,181.55,12.00708333]
[1747223104092,19.2720665,181.61,181.56,12.00708333]
[1747223104093,31.27914983,181.61,181.56,12.00708333]
[1747223104387,12.00708333,181.6,181.55,12.00708333]
[1747223104976,5.50691117,181.59,181.55,12.00708333]
[1747223106891,5.50670529,181.6,181.56,12.00708333]
[1747223107192,5.50670529,181.6,181.53,1.2]
[1747223107193,5.50670529,181.6,181.57,12.00708333]
[1747223107404,24.13176876,181.62,181.57,12.00708333]
[1747223108490,12.00708333,181.61,181.56,12.00708333]
[1747223110404,5.50660792,181.6,181.56,12.00708333]
[1747223110706,17.51369125,181.6,181.55,12.00708333]
[1747223111803,5.50660792,181.6,181.55,12.00708333]
[1747223112108,5.50660792,181.6,181.56,12.00708333]
[1747223112998,17.51369125,181.6,181.55,12.00708333]
[1747223114006,5.50660792,181.6,181.55,12.00708333]
[1747223115295,5.50660792,181.6,181.56,12.00708333]
[1747223116495,5.50660792,181.6,181.54,5.50840392]
[1747223116713,17.51338804,181.61,181.56,12.00708333]
[1747223118506,17.51338804,181.61,181.54,5.50836227]
[1747223118709,17.51338804,181.61,181.56,12.00708333]
[1747223119396,5.50630471,181.61,181.57,12.00708333]
[1747223120017,17.51338804,181.61,181.54,5.50836227]
[1747223120227,17.51338804,181.61,181.56,12.00708333]
[1747223121330,5.50630471,181.61,181.57,12.00708333]
[1747223124422,5.50630471,181.61,181.56,12.00708333]
[1747223127930,17.51338804,181.61,181.56,12.00708333]
[1747223128942,17.51338804,181.61,181.55,12.00708333]
[1747223129333,17.51338804,181.61,181.56,12.00708333]
[1747223130147,5.50630471,181.61,181.56,12.00708333]
[1747223130956,17.51338804,181.61,181.54,31.50822157]
[1747223131413,17.51338804,181.61,181.56,12.00708333]
[1747223133061,12.00708333,181.6,181.53,1.2]
[1747223133264,12.00708333,181.59,181.53,13.20708333]
[1747223133633,12.00708333,181.58,181.53,13.20708333]
[1747223133859,12.00708333,181.56,181.53,1.2]
[1747223134057,12.00708333,181.55,181.53,1.2]
[1747223134260,12.00708333,181.55,181.48,20.96]
[1747223134569,5.50842789,181.54,181.5,12.00708333]
[1747223135055,5.50842789,181.54,181.47,5.51045406]
[1747223135368,5.50842789,181.54,181.5,12.00708333]
[1747223135875,17.51551122,181.54,181.5,12.00708333]
[1747223136037,17.51551122,181.54,181.46,28.87122756]
[1747223136240,12.00708333,181.53,181.46,28.87122756]
[1747223136554,12.00708333,181.53,181.48,12.00708333]
[1747223137060,12.00708333,181.51,181.47,12.00708333]
[1747223137643,5.50964187,181.5,181.44,46.9]
[1747223138050,5.50964187,181.5,181.46,12.00708333]
[1747223139777,17.5167252,181.5,181.45,12.00708333]
[1747223140141,17.5167252,181.5,181.42,67.82]
[1747223140142,12.00708333,181.49,181.42,46.92]
[1747223140444,12.00708333,181.49,181.44,12.00708333]
[1747223140764,12.00708333,181.48,181.44,12.00708333]
[1747223140969,12.00708333,181.47,181.37,10.20286506]
[1747223141158,1.512,181.49,181.37,10.20286506]
[1747223141159,12.00708333,181.46,181.41,12.00708333]
[1747223141372,12.00708333,181.45,181.39,2.87243752]
[1747223141664,5.5105527,181.47,181.4,12.00708333]
[1747223141855,12.00708333,181.45,181.4,12.00708333]
[1747223142775,5.51146384,181.44,181.4,12.00708333]
[1747223143078,17.51854717,181.44,181.39,12.00708333]
[1747223143367,12.00708333,181.42,181.38,12.00708333]
[1747223143574,12.00708333,181.4,181.33,14.11318251]
[1747223143780,19.29012345,181.44,181.38,12.00708333]
[1747223143950,5.51146384,181.44,181.4,12.00708333]
[1747223144151,5.51146384,181.44,181.41,12.00708333]
[1747223144541,5.51146384,181.44,181.35,38.00708333]
[1747223144542,17.51763603,181.47,181.43,12.00708333]
[1747223145071,17.51763603,181.47,181.42,12.00708333]
[1747223146658,12.00708333,181.45,181.4,12.00708333]
[1747223147373,12.00708333,181.45,181.37,31.51350636]
[1747223147374,12.00708333,181.44,181.39,12.00708333]
[1747223147552,19.28693447,181.47,181.39,12.00708333]
[1747223147553,12.00708333,181.43,181.39,12.00708333]
[1747223147755,12.00708333,181.43,181.38,12.00708333]
[1747223147951,12.00708333,181.42,181.37,12.00708333]
[1747223148793,12.00708333,181.42,181.34,55.26717313]
[1747223148794,12.00708333,181.42,181.34,29.26717313]
[1747223148969,12.00708333,181.41,181.34,2.87291025]
[1747223149171,12.00708333,181.4,181.36,12.00708333]
[1747223149371,5.51298307,181.39,181.36,12.00708333]
[1747223150150,5.51298307,181.39,181.34,2.87291025]
[1747223150352,5.51298307,181.39,181.36,12.00708333]
[1747223151158,5.51276835,181.4,181.36,12.00708333]
[1747223151379,5.51276835,181.4,181.34,2.87291025]
[1747223151573,5.51276835,181.4,181.36,12.00708333]
[1747223152199,5.51276835,181.4,181.34,8.38734657]
[1747223152360,5.51276835,181.4,181.36,12.00708333]
[1747223153492,5.51276835,181.4,181.37,12.00708333]
[1747223153789,5.5124039,181.41,181.37,12.00708333]
[1747223153980,5.5124039,181.41,181.35,5.51410527]
[1747223154154,5.5124039,181.41,181.37,12.00708333]
[1747223155514,7.10886765,181.42,181.39,12.00708333]
[1747223155711,5.51216765,181.42,181.39,12.00708333]
[1747223157408,5.51216765,181.42,181.4,0.5]
[1747223157714,17.51925098,181.42,181.4,0.5]
[1747223157903,17.51925098,181.42,181.37,12.00708333]
[1747223158424,5.51183814,181.43,181.39,12.00708333]
[1747223159689,17.51892147,181.43,181.39,12.00708333]
[1747223160092,17.51892147,181.43,181.38,12.00708333]
[1747223160289,12.00708333,181.4,181.35,12.00708333]
[1747223160597,12.00708333,181.4,181.32,20.86]
[1747223160598,12.00708333,181.41,181.36,12.00708333]
[1747223161810,17.51976249,181.4,181.35,12.00708333]
[1747223162194,12.00708333,181.39,181.34,12.00708333]
[1747223164115,5.51328702,181.38,181.34,12.00708333]
[1747223165013,5.51328702,181.38,181.35,12.00708333]
[1747223166493,6.6079,181.42,181.37,12.00708333]
[1747223166683,27.55069231,181.49,181.4,12.00708333]
[1747223166684,7.86966157,181.46,181.4,12.00708333]
[1747223166890,12.00708333,181.44,181.39,12.00708333]
[1747223167300,19.28906033,181.45,181.41,12.00708333]
[1747223167511,31.29614366,181.45,181.4,12.00708333]
[1747223168818,12.00708333,181.44,181.4,12.00708333]
[1747223169020,31.29614366,181.45,181.4,12.00708333]
[1747223169794,31.29614366,181.45,181.36,5.5138085]
[1747223170001,31.29614366,181.45,181.4,12.00708333]
[1747223170516,12.00708333,181.44,181.36,5.5138085]
[1747223170717,5.51176762,181.43,181.4,12.00708333]
[1747223173022,5.51146384,181.44,181.4,12.00708333]
[1747223173402,5.51146384,181.44,181.37,5.51357977]
[1747223173603,5.51146384,181.44,181.4,12.00708333]
[1747223173818,17.51854717,181.44,181.39,12.00708333]
[1747223177295,12.00708333,181.44,181.39,12.00708333]
[1747223178122,5.51116009,181.45,181.4,12.00708333]
[1747223178332,17.51824342,181.45,181.4,12.00708333]
[1747223178623,12.00708333,181.44,181.4,12.00708333]
[1747223179335,5.51116009,181.45,181.4,12.00708333]
[1747223179503,12.00708333,181.44,181.4,12.00708333]
[1747223179705,5.51116009,181.45,181.4,12.00708333]
[1747223179922,17.51824342,181.45,181.4,12.00708333]
[1747223180534,5.51116009,181.45,181.4,12.00708333]
[1747223180832,5.51116009,181.45,181.43,12.00708333]
[1747223181531,5.51116009,181.45,181.39,26.33288695]
[1747223181730,5.51116009,181.45,181.42,12.00708333]
[1747223181931,5.51116009,181.45,181.39,26.33288695]
[1747223182109,5.51116009,181.45,181.42,12.00708333]
[1747223182310,5.51116009,181.45,181.41,12.00708333]
[1747223185442,5.51116009,181.45,181.42,12.00708333]
[1747223187833,5.51116009,181.45,181.39,20.82]
[1747223188038,5.51116009,181.45,181.41,12.00708333]
[1747223188425,5.51116009,181.45,181.42,12.00708333]
[1747223190334,7.7787,181.51,181.44,12.00708333]
[1747223190507,13.28810836,181.51,181.47,12.00708333]
[1747223191539,13.28810836,181.51,181.46,12.00708333]
[1747223191740,13.28810836,181.51,181.47,12.00708333]
[1747223191925,13.28810836,181.51,181.42,26.0]
[1747223191926,13.28810836,181.51,181.46,12.00708333]
[1747223193019,25.29519169,181.51,181.43,5.51156818]
[1747223193333,25.29519169,181.51,181.46,12.00708333]
[1747223194134,13.28810836,181.51,181.47,12.00708333]
[1747223195244,25.29519169,181.51,181.43,5.51176762]
[1747223195454,25.29519169,181.51,181.46,12.00708333]
[1747223195948,25.29519169,181.51,181.43,5.51176762]
[1747223196253,25.29519169,181.51,181.46,12.00708333]
[1747223196949,12.00708333,181.5,181.45,12.00708333]
[1747223197160,27.06145418,181.51,181.45,12.00708333]
[1747223197450,39.06853751,181.51,181.46,12.00708333]
[1747223198454,12.00708333,181.5,181.45,12.00708333]
[1747223200051,12.00708333,181.49,181.44,12.00708333]
[1747223200456,27.06145418,181.51,181.39,20.8]
[1747223200457,12.00708333,181.47,181.39,20.8]
[1747223200625,12.00708333,181.46,181.41,12.00708333]
[1747223201734,5.51116009,181.45,181.41,12.00708333]
[1747223202463,5.51116009,181.45,181.4,32.76708333]
[1747223202635,17.51824342,181.45,181.4,32.76708333]
[1747223202831,17.51824342,181.45,181.38,26.0]
[1747223203035,17.51824342,181.45,181.4,12.00708333]
[1747223205257,17.51824342,181.45,181.39,12.00708333]
[1747223205258,12.00708333,181.44,181.39,12.00708333]
[1747223206235,19.28906033,181.45,181.4,12.00708333]
[1747223206431,31.29614366,181.45,181.4,12.00708333]
[1747223207877,31.29614366,181.45,181.35,25.20378882]
[1747223207878,12.00708333,181.41,181.35,25.20378882]
[1747223208163,12.00708333,181.38,181.33,12.00708333]
[1747223208465,12.00708333,181.38,181.33,14.88062189]
[1747223208635,12.00708333,181.38,181.33,12.00708333]
[1747223209035,5.513591,181.37,181.32,46.74]
[1747223209265,5.513591,181.37,181.33,12.00708333]
[1747223210368,5.513591,181.37,181.3,2.87375419]
[1747223210369,12.00708333,181.34,181.3,2.87375419]
[1747223210666,7.6478,181.36,181.3,2.87375419]
[1747223210667,12.00708333,181.35,181.3,12.00708333]
[1747223210843,12.00708333,181.34,181.27,28.87435828]
[1747223211043,12.00708333,181.33,181.28,12.00708333]
[1747223211761,12.00708333,181.34,181.29,12.00708333]
[1747223211956,5.51419906,181.35,181.29,12.00708333]
[1747223212138,5.51419906,181.35,181.27,2.87435828]
[1747223212139,12.00708333,181.32,181.27,2.87435828]
[1747223212471,12.00708333,181.32,181.26,52.94530072]
[1747223212639,5.51419906,181.35,181.28,12.00708333]
[1747223212640,12.00708333,181.33,181.28,12.00708333]
[1747223212843,12.00708333,181.33,181.29,12.00708333]
[1747223213348,5.51419906,181.35,181.29,12.00708333]
[1747223213669,12.00708333,181.35,181.3,12.00708333]
[1747223214044,25.16882122,181.36,181.31,12.00708333]
[1747223214367,12.00708333,181.35,181.31,12.00708333]
[1747223214966,12.00708333,181.35,181.3,12.00708333]
[1747223215170,25.16882122,181.36,181.31,12.00708333]
[1747223215463,7.6478,181.36,181.35,12.00708333]
[1747223216164,5.51325159,181.39,181.35,12.00708333]
[1747223216469,5.51325159,181.39,181.37,12.00708333]
[1747223216767,5.51325159,181.39,181.36,12.00708333]
[1747223218052,5.51325159,181.39,181.3,5.51564379]
[1747223218241,5.51325159,181.39,181.36,12.00708333]
[1747223218875,18.933972,181.38,181.27,5.5164107]
[1747223219040,18.933972,181.38,181.34,12.00708333]
[1747223219371,18.933972,181.38,181.27,46.7]
[1747223219372,18.933972,181.38,181.35,12.00708333]
[1747223220371,5.513591,181.37,181.35,12.00708333]
[1747223220572,5.513591,181.37,181.36,12.00708333]
[1747223221678,19.29544075,181.39,181.36,12.00708333]
[1747223224247,19.29544075,181.39,181.37,12.00708333]
[1747223224879,5.51298307,181.39,181.38,12.00708333]
[1747223225545,5.51276921,181.4,181.38,12.00708333]
[1747223225753,5.51276921,181.4,181.39,12.00708333]
[1747223225947,26.78404886,181.44,181.39,12.00708333]
[1747223225948,5.51176762,181.43,181.39,12.00708333]
[1747223226151,5.51176762,181.43,181.42,12.00708333]
[1747223230092,5.51176762,181.43,181.41,12.00708333]
[1747223231005,5.51176762,181.43,181.42,12.00708333]
[1747223232100,5.51150712,181.44,181.42,12.00708333]
[1747223232403,5.51150712,181.44,181.43,12.00708333]
[1747223232901,5.51150712,181.44,181.36,26.0]
[1747223232902,5.51150712,181.44,181.42,12.00708333]
[1747223233400,19.28839519,181.46,181.43,12.00708333]
[1747223235506,19.28839519,181.46,181.38,26.0]
[1747223235689,19.28839519,181.46,181.43,12.00708333]
[1747223237091,19.28839519,181.46,181.42,12.00708333]
[1747223237411,31.29547852,181.46,181.41,12.00708333]
[1747223237901,26.0,181.42,181.4,12.00708333]
[1747223238492,5.51237528,181.41,181.4,12.00708333]
[1747223240196,5.51176762,181.43,181.4,12.00708333]
[1747223240384,5.51176762,181.43,181.42,12.00708333]
[1747223240585,26.0,181.46,181.42,12.00708333]
[1747223240586,5.51116009,181.45,181.42,12.00708333]
[1747223242916,0.28432314,181.44,181.36,26.0]
[1747223243216,0.28432314,181.44,181.4,12.00708333]
[1747223243817,18.933972,181.44,181.4,12.00708333]
[1747223244018,30.94105533,181.44,181.39,12.00708333]
[1747223245218,12.00708333,181.42,181.38,12.00708333]
[1747223245511,12.00708333,181.39,181.33,26.0]
[1747223245714,12.00708333,181.39,181.34,12.00708333]
[1747223246426,12.29140647,181.4,181.36,12.00708333]
[1747223246594,12.29140647,181.4,181.35,12.00708333]
[1747223246913,12.00708333,181.39,181.34,12.00708333]
[1747223247086,17.5200664,181.39,181.34,12.00708333]
[1747223247288,31.30252408,181.39,181.31,1.5622]
[1747223247497,31.30252408,181.39,181.35,12.00708333]
[1747223247883,31.30252408,181.39,181.29,55.00863342]
[1747223248190,12.00708333,181.36,181.29,2.87267596]
[1747223248395,12.00708333,181.35,181.31,12.00708333]
[1747223249005,5.51450314,181.34,181.31,12.00708333]
[1747223250714,12.00708333,181.33,181.28,12.00708333]
[1747223250899,5.51450314,181.34,181.29,12.00708333]
[1747223251103,5.51389501,181.36,181.33,12.00708333]
[1747223251514,19.29863254,181.36,181.32,12.00708333]
[1747223253407,12.29140647,181.35,181.26,12.00708333]
[1747223253601,12.29140647,181.35,181.3,12.00708333]
[1747223254307,19.29863254,181.36,181.32,12.00708333]
[1747223254628,19.29863254,181.36,181.33,12.00708333]
[1747223255401,31.30571587,181.36,181.31,12.00708333]
[1747223255717,19.29863254,181.36,181.31,12.00708333]
[1747223255921,31.30571587,181.36,181.31,12.00708333]
[1747223257027,5.51450314,181.34,181.26,17.52397344]
[1747223257198,31.30784432,181.34,181.25,49.47471728]
[1747223257403,31.30784432,181.34,181.29,12.00708333]
[1747223257615,31.30784432,181.34,181.27,26.0]
[1747223257811,31.30784432,181.34,181.29,12.00708333]
[1747223258128,19.30076099,181.34,181.29,12.00708333]
[1747223258331,19.30076099,181.34,181.3,12.00708333]
[1747223258635,12.00708333,181.31,181.25,14.88180061]
[1747223258803,12.00708333,181.3,181.25,12.00708333]
[1747223259002,5.51602404,181.29,181.25,12.00708333]
[1747223260021,5.51602404,181.29,181.27,12.00708333]
[1747223260250,5.51602404,181.29,181.26,12.00708333]
[1747223261242,19.30524293,181.3,181.26,12.00708333]
[1747223262051,5.5151114,181.32,181.29,12.00708333]
[1747223262221,5.5151114,181.32,181.31,12.00708333]
[1747223262933,5.5151114,181.32,181.25,26.0]
[1747223263137,5.5151114,181.32,181.31,12.00708333]
[1747223264545,5.51419906,181.35,181.31,12.00708333]
[1747223265116,19.29969671,181.35,181.31,12.00708333]
[1747223265516,19.29969671,181.35,181.33,12.00708333]
[1747223265517,5.51419906,181.35,181.33,12.00708333]
[1747223267033,5.513591,181.37,181.34,12.00708333]
[1747223267345,5.513591,181.37,181.36,12.00708333]
[1747223267556,5.513591,181.37,181.35,12.00708333]
[1747223268357,5.51328702,181.38,181.29,5.51602404]
[1747223268562,5.51328702,181.38,181.35,12.00708333]
[1747223270443,31.3035879,181.38,181.33,12.00708333]
[1747223270649,19.29650457,181.38,181.34,12.00708333]
[1747223276961,19.29650457,181.38,181.28,33.15923014]
[1747223277168,19.29650457,181.38,181.34,12.00708333]
[1747223278869,19.29650457,181.38,181.28,33.15923014]
[1747223279077,19.29650457,181.38,181.34,12.00708333]
[1747223279769,31.3035879,181.38,181.28,33.15923014]
[1747223280068,19.29650457,181.38,181.34,12.00708333]
[1747223287944,19.29650457,181.38,181.28,27.643]
[1747223288145,12.00708333,181.37,181.28,27.643]
[1747223288344,31.3035879,181.38,181.33,12.00708333]
[1747223289246,19.29650457,181.38,181.33,12.00708333]
[1747223289446,19.29650457,181.38,181.34,12.00708333]
[1747223289773,31.3035879,181.38,181.34,12.00708333]
[1747223290070,31.3035879,181.38,181.33,12.00708333]
[1747223290450,31.3035879,181.38,181.32,12.00708333]
[1747223290451,12.00708333,181.37,181.32,12.00708333]
[1747223291254,12.00708333,181.33,181.28,12.00708333]
[1747223291449,17.52219473,181.32,181.28,12.00708333]
[1747223291679,12.00708333,181.31,181.24,23.35393485]
[1747223291850,12.00708333,181.29,181.25,12.00708333]
[1747223292178,0.14216157,181.31,181.2,1.531]
[1747223292179,12.00708333,181.28,181.23,12.00708333]
[1747223292376,12.00708333,181.28,181.2,2.87540932]
[1747223292557,12.00708333,181.28,181.23,12.00708333]
[1747223292755,12.00708333,181.28,181.2,2.87540932]
[1747223293171,12.00708333,181.28,181.23,12.00708333]
[1747223293551,17.52371597,181.27,181.2,2.87540932]
[1747223293756,12.00708333,181.26,181.22,12.00708333]
[1747223294166,19.30821425,181.27,181.22,12.00708333]
[1747223294349,31.31529758,181.27,181.2,26.0]
[1747223294549,12.00708333,181.26,181.2,26.0]
[1747223294778,12.00708333,181.25,181.19,26.0]
[1747223294983,12.00708333,181.25,181.2,12.00708333]
[1747223295157,12.00708333,181.25,181.19,26.0]